bitfinex/quotes_BTCUSD_20251117
["timestamp","ask_amount","ask_price","bid_price","bid_amount"]
[1763349753317,0.3802,95560.0,95559.0,0.16282332]
[1763349753964,0.3802,95560.0,95559.0,0.13661332]
[1763349754169,0.38033256,95560.0,95559.0,0.13761332]
[1763349754508,0.38033256,95560.0,95559.0,0.15266465]
[1763349755141,0.38033256,95560.0,95559.0,0.10687332]
[1763349755569,0.54817256,95560.0,95559.0,0.10687332]
[1763349757803,0.38033256,95560.0,95559.0,0.10687332]
[1763349758229,0.38033256,95560.0,95559.0,0.001]
[1763349762285,0.38033256,95560.0,95559.0,0.04505]
[1763349762462,0.38033256,95560.0,95559.0,0.052135]
[1763349764092,0.39676325,95560.0,95559.0,0.052135]
[1763349765523,0.56460325,95560.0,95559.0,0.052135]
[1763349767315,0.56460325,95560.0,95559.0,0.025925]
[1763349768227,0.48068325,95560.0,95559.0,0.025925]
[1763349768453,0.36878325,95560.0,95559.0,0.073525]
[1763349768689,0.35235256,95560.0,95559.0,5.073525]
[1763349768893,0.35235256,95560.0,95559.0,5.173525]
[1763349768894,0.33996516,95560.0,95559.0,5.173525]
[1763349769335,0.33996516,95560.0,95559.0,5.172525]
[1763349769542,0.33996516,95560.0,95559.0,5.173525]
[1763349769760,0.33996516,95560.0,95559.0,5.174525]
[1763349769959,0.33996516,95560.0,95559.0,5.173525]
[1763349770182,0.33996516,95560.0,95559.0,5.152495]
[1763349770383,0.33996516,95560.0,95559.0,5.154495]
[1763349770584,0.33996516,95560.0,95559.0,5.153495]
[1763349770787,0.33996516,95560.0,95559.0,0.452695]
[1763349770980,0.33996516,95560.0,95559.0,0.423595]
[1763349771107,0.33996516,95560.0,95559.0,0.393295]
[1763349771507,0.33996516,95560.0,95559.0,0.374695]
[1763349772565,0.33996516,95560.0,95559.0,0.656395]
[1763349772920,0.33996516,95560.0,95559.0,0.658395]
[1763349773095,0.33996516,95560.0,95559.0,0.610995]
[1763349773688,0.33996516,95560.0,95559.0,1.260995]
[1763349774475,0.33996516,95560.0,95559.0,0.253495]
[1763349774678,0.33996516,95560.0,95559.0,1.514595]
[1763349774916,0.33996516,95560.0,95559.0,1.478195]
[1763349775108,0.33996516,95560.0,95559.0,1.439695]
[1763349775339,0.33996516,95560.0,95559.0,1.395795]
[1763349775517,0.42388516,95560.0,95559.0,0.253495]
[1763349775743,0.42388516,95560.0,95559.0,2.559595]
[1763349776641,0.42388516,95560.0,95559.0,4.050995]
[1763349776812,0.42388516,95560.0,95559.0,2.664395]
[1763349777018,0.30303751,95560.0,95559.0,2.70781374]
[1763349777375,0.19937583,95560.0,95559.0,2.70781374]
[1763349777557,0.16355048,95560.0,95559.0,0.61991374]
[1763349777777,0.36013256,95560.0,95559.0,5.76551374]
[1763349777967,0.36013256,95560.0,95559.0,5.76451374]
[1763349778167,0.36013256,95560.0,95559.0,5.76551374]
[1763349778517,0.36013256,95560.0,95559.0,5.76351374]
[1763349778928,0.36013256,95560.0,95559.0,5.76751374]
[1763349780546,0.0002,95570.0,95569.0,5.14929206]
[1763349780748,0.38031108,95570.0,95569.0,5.19447206]
[1763349780957,0.38031108,95570.0,95569.0,5.34007206]
[1763349781082,0.38031108,95570.0,95569.0,5.44007206]
[1763349781265,0.38031108,95570.0,95569.0,5.54374144]
[1763349781702,0.38031108,95570.0,95569.0,5.54474144]
[1763349782118,0.38031108,95570.0,95569.0,5.54574144]
[1763349783355,0.38031108,95570.0,95569.0,5.86874144]
[1763349784841,0.09660664,95570.0,95569.0,5.86874144]
[1763349785051,0.00015194,95588.0,95587.0,5.10587332]
[1763349785286,0.00015194,95588.0,95587.0,5.74017144]
[1763349785287,0.37015194,95588.0,95587.0,5.74017144]
[1763349785502,0.45403194,95588.0,95587.0,5.76674144]
[1763349785709,0.45403194,95588.0,95587.0,5.86674144]
[1763349785917,0.45403194,95588.0,95587.0,5.72114144]
[1763349786122,0.45403194,95588.0,95587.0,5.72214144]
[1763349786346,0.45403194,95588.0,95587.0,5.82114144]
[1763349786754,0.45403194,95588.0,95587.0,5.82314144]
[1763349787168,0.37015194,95588.0,95587.0,5.96974144]
[1763349787586,0.37015194,95588.0,95587.0,5.96874144]
[1763349787995,0.37015194,95588.0,95587.0,5.97074144]
[1763349789435,0.37015194,95588.0,95587.0,6.04670798]
[1763349789636,0.37015194,95588.0,95587.0,6.02074144]
[1763349790264,0.37015194,95588.0,95587.0,6.04177144]
[1763349790513,0.37015194,95588.0,95587.0,6.02074144]
[1763349790944,0.37015194,95588.0,95587.0,4.49567206]
[1763349791159,0.37015194,95588.0,95587.0,3.70087206]
[1763349791368,0.06015194,95588.0,95587.0,3.70087206]
[1763349791566,0.35015194,95588.0,95587.0,3.70087206]
[1763349791996,0.32217194,95588.0,95587.0,5.91707206]
[1763349792153,0.32217194,95588.0,95587.0,6.02074144]
[1763349792765,0.01256,95629.0,95588.0,5.36641874]
[1763349792966,0.3502,95590.0,95589.0,5.43502874]
[1763349793129,0.3502,95590.0,95589.0,5.60719874]
[1763349793636,0.3502,95590.0,95589.0,5.70719874]
[1763349793835,0.3502,95590.0,95589.0,5.79012402]
[1763349794036,0.3502,95590.0,95589.0,5.89012402]
[1763349794895,0.3502,95590.0,95589.0,5.84012402]
[1763349795253,0.3502,95590.0,95589.0,5.84212402]
[1763349795501,0.43408,95590.0,95589.0,5.84212402]
[1763349795700,0.43408,95590.0,95589.0,3.84372402]
[1763349795879,0.43408,95590.0,95589.0,3.23902402]
[1763349796083,0.43408,95590.0,95589.0,3.95232402]
[1763349796306,0.43408,95590.0,95589.0,3.95432402]
[1763349796693,0.43408,95590.0,95589.0,3.95232402]
[1763349797114,0.43408,95590.0,95589.0,4.15152402]
[1763349797313,0.43408,95590.0,95589.0,4.14952402]
[1763349797503,0.43408,95590.0,95589.0,1.99112402]
[1763349797701,0.3502,95590.0,95589.0,1.99112402]
[1763349797906,0.3502,95590.0,95589.0,0.97378]
[1763349798109,0.3502,95590.0,95589.0,0.73838]
[1763349798914,0.3502,95590.0,95589.0,0.57018]
[1763349799114,0.3502,95590.0,95589.0,5.57018]
[1763349799324,0.3502,95590.0,95589.0,4.71778]
[1763349799527,0.3502,95590.0,95589.0,0.89424938]
[1763349799923,0.3502,95590.0,95589.0,0.35084938]
[1763349800148,0.3502,95590.0,95589.0,0.44198]
[1763349800528,0.0002,95590.0,95589.0,0.41688]
[1763349800844,0.01925,95590.0,95589.0,0.002]
[1763349802056,0.01925,95590.0,95589.0,0.001]
[1763349802249,0.01925,95590.0,95587.0,0.10587332]
[1763349802426,0.00997,95588.0,95587.0,0.11946065]
[1763349802640,0.01925,95590.0,95587.0,0.11946065]
[1763349802641,0.0002,95590.0,95587.0,0.11946065]
[1763349802870,0.0002,95590.0,95589.0,0.01911]
[1763349803366,0.3702,95590.0,95589.0,0.04775]
[1763349804226,0.3702,95590.0,95589.0,0.14875]
[1763349804485,0.3702,95590.0,95589.0,0.17557106]
[1763349804695,0.3702,95590.0,95589.0,0.17657106]
[1763349805584,0.55701,95590.0,95589.0,0.101]
[1763349805801,0.38925,95590.0,95589.0,0.002]
[1763349806020,0.3702,95590.0,95589.0,0.002]
[1763349806459,0.38925,95590.0,95589.0,0.001]
[1763349806668,0.38925,95590.0,95580.0,0.65203506]
[1763349806883,0.38662432,95590.0,95581.0,0.07865484]
[1763349807113,0.02823057,95629.0,95581.0,0.07865484]
[1763349807114,0.01108628,95638.0,95634.0,0.1]
[1763349807330,0.01108628,95638.0,95611.0,0.06298]
[1763349807331,0.0002,95660.0,95651.0,0.41641874]
[1763349807550,0.01322,95688.0,95681.0,5.0]
[1763349807792,0.01322,95688.0,95680.0,0.02999998]
[1763349807793,0.38322,95688.0,95680.0,0.01]
[1763349808028,0.16,95688.0,95681.0,0.07986794]
[1763349808286,0.16,95688.0,95680.0,0.02999998]
[1763349808490,0.16,95688.0,95681.0,0.04386044]
[1763349808491,0.02658,95687.0,95681.0,0.04386044]
[1763349808648,0.01905,95682.0,95681.0,0.0004417]
[1763349808841,0.34905,95682.0,95681.0,0.02277521]
[1763349809053,0.33,95682.0,95681.0,2.08957521]
[1763349809272,0.33,95682.0,95681.0,2.91956333]
[1763349809855,0.37563,95682.0,95681.0,0.04386044]
[1763349810287,0.331,95682.0,95681.0,0.04386044]
[1763349810552,0.001,95682.0,95681.0,0.04386044]
[1763349810768,0.091,95682.0,95681.0,0.04386044]
[1763349811185,0.371,95682.0,95681.0,0.04386044]
[1763349811400,0.17,95682.0,95681.0,0.04386044]
[1763349811627,0.36,95682.0,95681.0,0.04386044]
[1763349812227,0.36,95682.0,95681.0,3.15746044]
[1763349812407,0.36,95682.0,95681.0,1.58142982]
[1763349813243,0.36,95682.0,95681.0,2.40092982]
[1763349813632,0.36232207,95682.0,95681.0,2.40092982]
[1763349814032,0.36232207,95682.0,95681.0,2.42951913]
[1763349814235,0.36232207,95682.0,95681.0,4.48111913]
[1763349815233,0.36232207,95682.0,95681.0,4.55571913]
[1763349815434,0.44616207,95682.0,95681.0,4.55571913]
[1763349815638,0.23616207,95682.0,95681.0,4.55571913]
[1763349815858,0.15232207,95682.0,95681.0,4.55571913]
[1763349816064,0.23616207,95682.0,95681.0,4.5846867]
[1763349816270,0.23616207,95682.0,95681.0,4.6316867]
[1763349816416,0.23616207,95682.0,95681.0,4.18631913]
[1763349817044,0.23616207,95682.0,95681.0,0.17611913]
[1763349817256,0.23616207,95682.0,95681.0,4.07794975]
[1763349817478,0.23616207,95682.0,95681.0,4.05504975]
[1763349817683,0.23616207,95682.0,95681.0,4.04224975]
[1763349818110,0.23616207,95682.0,95681.0,4.07214975]
[1763349818344,0.15232207,95682.0,95681.0,4.07214975]
[1763349818597,0.15232207,95682.0,95681.0,4.22747811]
[1763349818803,0.15232207,95682.0,95681.0,4.28553906]
[1763349819000,0.15232207,95682.0,95681.0,4.25810487]
[1763349819243,0.15232207,95682.0,95681.0,5.25840487]
[1763349819890,0.15232207,95682.0,95681.0,5.58140487]
[1763349820097,0.15232207,95682.0,95681.0,0.68140487]
[1763349820296,0.01322,95730.0,95682.0,0.36641874]
[1763349820536,0.01322,95730.0,95689.0,5.51048081]
[1763349820755,0.00024551,95691.0,95689.0,5.57133919]
[1763349820898,0.00024551,95691.0,95689.0,5.51048081]
[1763349821098,0.00024551,95691.0,95689.0,0.51048081]
[1763349821324,0.00024551,95691.0,95689.0,5.56893678]
[1763349821701,0.00024551,95691.0,95689.0,5.64712741]
[1763349821901,0.00024551,95691.0,95689.0,5.56893678]
[1763349822424,0.4002,95690.0,95689.0,1.09978081]
[1763349822637,0.4002,95690.0,95689.0,0.09506207]
[1763349822638,0.41925,95690.0,95689.0,0.09506207]
[1763349823005,0.41925,95690.0,95689.0,0.13848081]
[1763349823402,0.44583,95690.0,95689.0,0.13848081]
[1763349823601,0.44583,95690.0,95689.0,0.09506207]
[1763349823722,0.44583,95690.0,95689.0,0.09406207]
[1763349824148,0.44583,95690.0,95689.0,0.09506207]
[1763349824369,0.44583,95690.0,95689.0,0.10456828]
[1763349824629,0.44583,95690.0,95689.0,0.10356828]
[1763349825471,0.61343,95690.0,95689.0,0.10356828]
[1763349825823,0.52963,95690.0,95689.0,0.10356828]
[1763349826242,0.4002,95690.0,95689.0,0.13748081]
[1763349826755,0.0002,95690.0,95689.0,5.51048081]
[1763349827251,0.0002,95690.0,95689.0,5.46048081]
[1763349828424,0.0002,95690.0,95689.0,5.46148081]
[1763349828608,0.0002,95690.0,95689.0,5.56515019]
[1763349829006,0.0002,95690.0,95689.0,5.56415019]
[1763349829252,0.0002,95690.0,95689.0,5.56515019]
[1763349829626,0.0002,95690.0,95689.0,0.56515019]
[1763349829831,0.0002,95690.0,95689.0,5.56515019]
[1763349830006,0.0002,95690.0,95689.0,5.61515019]
[1763349830222,0.0002,95690.0,95689.0,5.74538181]
[1763349830424,0.0002,95690.0,95689.0,5.74956994]
[1763349830811,0.0002,95690.0,95689.0,5.77620461]
[1763349830998,0.0002,95690.0,95689.0,5.79732606]
[1763349831199,0.01451,95727.0,95690.0,0.36299998]
[1763349831449,0.01451,95717.0,95702.0,5.36641874]
[1763349831649,0.01451,95717.0,95702.0,0.38854019]
[1763349831848,0.01451,95717.0,95702.0,5.38854019]
[1763349832033,0.01451,95717.0,95702.0,5.48854019]
[1763349832592,0.01451,95717.0,95702.0,5.51977181]
[1763349832790,0.01451,95717.0,95702.0,5.62344119]
[1763349833731,0.01451,95717.0,95702.0,5.62444119]
[1763349833981,0.01451,95717.0,95702.0,5.59420957]
[1763349834171,0.01640448,95725.0,95702.0,5.64420957]
[1763349834378,0.01640448,95725.0,95702.0,5.67444119]
[1763349835407,0.0838,95716.0,95702.0,5.67444119]
[1763349835608,0.08389,95703.0,95702.0,5.67444119]
[1763349835808,0.08389,95703.0,95702.0,5.62444119]
[1763349836398,0.08376,95703.0,95702.0,0.62444119]
[1763349836601,0.08376,95703.0,95702.0,5.62444119]
[1763349837009,0.08408756,95703.0,95702.0,5.62444119]
[1763349837219,0.10333756,95703.0,95702.0,1.49277181]
[1763349837428,0.04789756,95703.0,95702.0,0.12412145]
[1763349837597,0.04789756,95703.0,95702.0,0.02412145]
[1763349838343,0.04789756,95703.0,95702.0,0.02212145]
[1763349839625,0.01957756,95703.0,95702.0,0.02212145]
[1763349839850,0.01957756,95703.0,95702.0,0.02992088]
[1763349840014,0.01957756,95703.0,95702.0,0.02212145]
[1763349840471,0.00032756,95703.0,95702.0,0.02212145]
[1763349840679,0.00032756,95703.0,95702.0,0.06554019]
[1763349841141,0.00032756,95703.0,95702.0,5.06554019]
[1763349841916,0.00032756,95703.0,95702.0,5.16554019]
[1763349842156,0.00032756,95703.0,95702.0,2.23350957]
[1763349842386,0.00032756,95703.0,95702.0,1.03742123]
[1763349842588,0.00032756,95703.0,95702.0,1.03842123]
[1763349843267,0.00032756,95703.0,95702.0,5.24202123]
[1763349843432,0.00032756,95703.0,95702.0,5.24102123]
[1763349843634,0.00032756,95703.0,95702.0,5.34469061]
[1763349843939,0.00032756,95703.0,95702.0,3.40720957]
[1763349844181,0.04283,95727.0,95702.0,3.40720957]
[1763349844182,0.04283,95727.0,95710.0,0.01]
[1763349844385,0.04283,95727.0,95726.0,0.13129864]
[1763349844591,0.04283,95727.0,95726.0,0.11618352]
[1763349844751,0.06208,95727.0,95726.0,0.11618352]
[1763349844966,0.06208,95727.0,95726.0,0.13638736]
[1763349845165,0.06208,95727.0,95726.0,0.11618352]
[1763349845369,0.14584,95727.0,95726.0,0.11662522]
[1763349845573,0.2296,95727.0,95726.0,0.11662522]
[1763349846425,0.09827,95727.0,95726.0,0.15386032]
[1763349846790,0.02832,95738.0,95726.0,0.16004396]
[1763349846990,0.01451,95745.0,95731.0,0.04341874]
[1763349847200,0.01451,95745.0,95730.0,0.02999998]
[1763349847201,0.01451,95745.0,95735.0,0.04341874]
[1763349847452,0.01451,95745.0,95736.0,3.26314019]
[1763349848063,0.01451,95745.0,95736.0,3.75594019]
[1763349848267,0.09406207,95782.0,95753.0,0.09406207]
[1763349848477,0.09406207,95782.0,95754.0,0.03152766]
[1763349848478,0.01451,95760.0,95754.0,0.03152766]
[1763349848649,0.01925,95755.0,95742.0,0.09406207]
[1763349848799,0.01925,95755.0,95743.0,0.02231674]
[1763349848800,0.03376,95755.0,95743.0,0.02231674]
[1763349848995,0.01451,95755.0,95744.0,0.02231674]
[1763349849233,0.01451,95755.0,95745.0,0.02231674]
[1763349849433,0.01451,95755.0,95746.0,0.02231674]
[1763349849637,0.01451,95755.0,95747.0,0.02231674]
[1763349849846,0.01451,95755.0,95737.0,0.02789434]
[1763349849847,0.03376,95743.0,95737.0,0.02789434]
[1763349850047,0.03376,95743.0,95726.0,0.0004417]
[1763349850048,0.01451,95743.0,95731.0,0.02789434]
[1763349850259,0.02832,95742.0,95738.0,0.09406207]
[1763349850655,0.01925,95739.0,95738.0,0.09406207]
[1763349851039,0.04757,95739.0,95738.0,0.09406207]
[1763349852449,0.01451,95743.0,95739.0,0.1628]
[1763349852813,0.01451,95743.0,95739.0,0.106]
[1763349852948,0.02832,95742.0,95740.0,0.02000621]
[1763349853147,0.02832,95742.0,95738.0,0.09406207]
[1763349853148,0.01925,95740.0,95738.0,0.09406207]
[1763349853355,0.01925,95739.0,95738.0,0.09406207]
[1763349853761,0.04857,95739.0,95732.0,0.09406207]
[1763349853963,0.01925,95733.0,95732.0,0.09406207]
[1763349854366,0.04757,95733.0,95732.0,0.09406207]
[1763349854768,0.04757,95733.0,95732.0,0.10630188]
[1763349854990,0.04757,95733.0,95732.0,0.01223981]
[1763349855197,0.04757,95733.0,95726.0,0.0004417]
[1763349855403,0.03376,95727.0,95726.0,0.0004417]
[1763349855809,0.06181,95727.0,95720.0,0.01]
[1763349856017,0.01941,95721.0,95720.0,0.01044321]
[1763349856351,0.01941,95721.0,95720.0,0.00044321]
[1763349856498,0.01941,95721.0,95710.0,0.01]
[1763349856499,0.0474,95721.0,95710.0,0.01]
[1763349856702,0.03502,95711.0,95710.0,0.010444]
[1763349857111,0.06301,95711.0,95710.0,0.010444]
[1763349859248,0.06301,95711.0,95710.0,0.000444]
[1763349863581,0.06301,95711.0,95701.0,0.04341874]
[1763349863786,0.01983,95701.0,95681.0,0.12195641]
[1763349863995,0.01519,95702.0,95681.0,0.12195641]
[1763349863996,0.01519,95682.0,95681.0,0.09450629]
[1763349864194,0.02799,95701.0,95681.0,0.09450629]
[1763349865091,0.02899,95701.0,95681.0,0.09450629]
[1763349865485,0.49052,95700.0,95681.0,0.09450629]
[1763349865857,0.02799,95699.0,95681.0,0.09450629]
[1763349866057,0.02799,95699.0,95682.0,0.05361292]
[1763349866488,0.01983,95683.0,95682.0,0.05361292]
[1763349867107,0.01983,95683.0,95681.0,0.09450629]
[1763349867306,0.01983,95682.0,95681.0,0.09450629]
[1763349867782,0.04782,95682.0,95681.0,0.09450629]
[1763349868199,0.04782,95682.0,95681.0,0.00044422]
[1763349871042,0.01983,95682.0,95681.0,0.00044422]
[1763349871264,0.04782,95682.0,95681.0,0.00044422]
[1763349875428,0.13162,95682.0,95681.0,0.00044422]
[1763349875644,0.21542,95682.0,95681.0,0.00044422]
[1763349878181,0.04782,95682.0,95681.0,0.00044422]
[1763349878402,0.04782,95682.0,95642.0,0.02789434]
[1763349878613,0.01519,95651.0,95648.0,0.01498859]
[1763349879064,0.01983,95649.0,95648.0,0.01498859]
[1763349879480,0.04782,95649.0,95648.0,0.01498859]
[1763349879922,0.04826383,95649.0,95648.0,0.01498859]
[1763349881223,0.00044383,95649.0,95648.0,0.02971859]
[1763349881446,0.00044383,95649.0,95648.0,4.77911859]
[1763349881660,0.00044383,95649.0,95648.0,3.34551859]
[1763349882086,0.00044383,95649.0,95639.0,0.8274572]
[1763349882305,0.00044383,95649.0,95639.0,0.4137286]
[1763349883354,0.00044383,95649.0,95648.0,0.01473]
[1763349884197,0.00044383,95649.0,95644.0,0.02789434]
[1763349884404,0.00044383,95649.0,95645.0,0.02789434]
[1763349884832,0.00044383,95649.0,95648.0,0.0068]
[1763349885446,0.04496383,95649.0,95645.0,0.02789434]
[1763349885678,0.04496383,95649.0,95642.0,0.02789434]
[1763349885679,0.01744,95648.0,95642.0,0.02789434]
[1763349885962,0.04452,95648.0,95638.0,0.4137286]
[1763349886910,0.04452,95648.0,95638.0,0.60762924]
[1763349889945,0.04452,95648.0,95626.0,0.04341874]
[1763349889946,0.04452,95648.0,95631.0,0.13376766]
[1763349890155,0.03264,95632.0,95631.0,0.10587332]
[1763349890350,0.03264,95632.0,95631.0,0.11925009]
[1763349890564,0.05972,95632.0,95631.0,0.10587332]
[1763349891948,0.05972,95632.0,95631.0,0.10687332]
[1763349892898,0.05972,95632.0,95631.0,0.001]
[1763349893483,0.05972,95632.0,95621.0,0.09406207]
[1763349893600,0.03264,95622.0,95621.0,0.09406207]
[1763349894056,0.05972,95622.0,95621.0,0.09406207]
[1763349894262,0.05972,95622.0,95621.0,0.10346828]
[1763349894503,0.05972,95622.0,95621.0,0.09406207]
[1763349894711,0.0152,95622.0,95621.0,0.09406207]
[1763349895106,0.03264,95622.0,95621.0,0.09406207]
[1763349895306,0.05972,95622.0,95621.0,0.09406207]
[1763349895464,0.2274,95622.0,95621.0,0.09406207]
[1763349896112,0.2274,95622.0,95621.0,0.10346828]
[1763349896316,0.05972,95622.0,95621.0,0.10346828]
[1763349897138,0.05972,95622.0,95621.0,0.09406207]
[1763349899023,0.0152,95639.0,95624.0,5.0]
[1763349899231,0.0152,95639.0,95621.0,0.11656207]
[1763349899232,0.04228,95639.0,95629.0,0.60762924]
[1763349899414,0.01954397,95638.0,95636.0,0.09406207]
[1763349899658,0.01954397,95637.0,95636.0,0.09406207]
[1763349899860,0.03698397,95637.0,95636.0,0.09406207]
[1763349900146,0.06406397,95637.0,95636.0,0.09406207]
[1763349901592,0.03698397,95637.0,95636.0,0.1642312]
[1763349901797,0.0152,95640.0,95636.0,0.1642312]
[1763349901999,0.00044383,95649.0,95639.0,0.01125]
[1763349902146,0.00044383,95649.0,95648.0,0.00737]
[1763349902553,0.00044383,95649.0,95648.0,2.57322]
[1763349902754,0.00044383,95649.0,95648.0,2.67688938]
[1763349903174,0.00044383,95649.0,95648.0,1.91223938]
[1763349903377,0.01788383,95649.0,95644.0,0.04341874]
[1763349903583,0.00044383,95649.0,95644.0,0.04341874]
[1763349903786,0.00044383,95649.0,95648.0,5.05466874]
[1763349904188,0.00044383,95649.0,95648.0,5.08258959]
[1763349904619,0.00044383,95649.0,95648.0,2.94993959]
[1763349904838,0.00044383,95649.0,95648.0,2.93273959]
[1763349905037,0.00044383,95649.0,95648.0,1.85773959]
[1763349905241,0.01788383,95649.0,95648.0,0.31531874]
[1763349905440,0.01788383,95649.0,95648.0,0.28744361]
[1763349905720,0.10172383,95649.0,95648.0,0.28744361]
[1763349906302,0.01788383,95649.0,95648.0,0.25951874]
[1763349906720,0.01788383,95649.0,95648.0,0.28745545]
[1763349906867,0.01788383,95649.0,95648.0,0.25951874]
[1763349907090,0.01788383,95649.0,95648.0,0.40511874]
[1763349907306,0.00044383,95649.0,95648.0,0.45288153]
[1763349908092,0.00044383,95649.0,95648.0,0.40511874]
[1763349908724,0.00044383,95649.0,95648.0,0.41636874]
[1763349909328,0.00044383,95649.0,95648.0,0.40511874]
[1763349911287,6.657e-05,95649.0,95648.0,0.40511874]
[1763349911489,0.0420488,95661.0,95649.0,0.04341874]
[1763349911692,0.0420488,95661.0,95660.0,0.09406207]
[1763349911811,0.0149688,95661.0,95652.0,0.09406207]
[1763349912236,0.02708,95660.0,95652.0,0.09406207]
[1763349912643,0.01744,95653.0,95652.0,0.09406207]
[1763349912849,0.01744,95653.0,95652.0,0.23966207]
[1763349913045,0.01744,95653.0,95652.0,0.27934623]
[1763349913930,0.01744,95653.0,95652.0,0.23966207]
[1763349915469,0.10124,95653.0,95652.0,0.23966207]
[1763349916139,0.01744,95653.0,95652.0,0.23966207]
[1763349918340,0.0152,95654.0,95652.0,0.23966207]
[1763349918690,0.0152,95654.0,95653.0,0.1456]
[1763349919094,0.058,95654.0,95653.0,0.1456]
[1763349924579,0.058,95654.0,95652.0,0.09406207]
[1763349924905,0.0428,95653.0,95652.0,0.09406207]
[1763349925411,0.1266,95653.0,95652.0,0.09406207]
[1763349925591,0.2104,95653.0,95652.0,0.09406207]
[1763349928573,0.1266,95653.0,95652.0,0.09406207]
[1763349929696,0.323,95675.0,95652.0,0.11601648]
[1763349929864,0.02824289,95714.0,95711.0,0.00788]
[1763349930061,0.01296,95766.0,95726.0,0.00324]
[1763349930264,0.03794,95742.0,95726.0,0.00324]
[1763349930486,0.03794,95742.0,95727.0,0.36641874]
[1763349930689,0.03794,95742.0,95729.0,0.323]
[1763349930690,0.02498,95732.0,95729.0,0.323]
[1763349930888,0.01782,95731.0,95730.0,0.02130413]
[1763349931088,0.01782,95731.0,95730.0,0.02134853]
[1763349931264,0.0428,95731.0,95730.0,0.02134853]
[1763349931464,0.0428,95731.0,95730.0,0.02034853]
[1763349932275,0.0428,95731.0,95730.0,4.44e-05]
[1763349934555,0.0438,95731.0,95730.0,4.44e-05]
[1763349935078,0.0438,95731.0,95700.0,0.6067423]
[1763349935288,0.03078,95701.0,95700.0,5.604e-05]
[1763349935495,0.19838,95701.0,95673.0,0.02788217]
[1763349935701,0.02498,95700.0,95680.0,0.6067423]
[1763349935936,0.01197,95693.0,95680.0,0.6067423]
[1763349936104,0.03078,95681.0,95680.0,0.6067423]
[1763349936304,0.03078,95681.0,95673.0,7.917e-05]
[1763349936470,0.02498,95680.0,95674.0,0.07287657]
[1763349936871,0.03078,95675.0,95674.0,0.07287657]
[1763349937290,0.05576,95675.0,95673.0,7.917e-05]
[1763349937478,0.01782,95674.0,95673.0,7.917e-05]
[1763349937879,0.0428,95674.0,95673.0,7.917e-05]
[1763349938791,0.0428,95674.0,95673.0,0.00107917]
[1763349939569,0.01296,95688.0,95673.0,0.01883917]
[1763349939770,0.01296,95688.0,95678.0,0.6067423]
[1763349939943,0.02498,95687.0,95686.0,0.09406207]
[1763349940157,0.03078,95679.0,95678.0,0.6067423]
[1763349940348,0.03078,95679.0,95673.0,0.04283268]
[1763349940649,0.01782,95674.0,95673.0,0.04283268]
[1763349941517,0.01782,95674.0,95673.0,0.02796134]
[1763349942247,0.01296,95688.0,95673.0,0.01883917]
[1763349942455,0.01296,95688.0,95687.0,0.09406207]
[1763349942923,0.05576,95688.0,95687.0,0.09406207]
[1763349945216,0.05576,95688.0,95678.0,0.6067423]
[1763349945426,0.19244,95687.0,95686.0,0.09406207]
[1763349945825,0.20952,95687.0,95686.0,0.09406207]
[1763349946227,0.20952,95687.0,95678.0,0.6067423]
[1763349946441,0.1676,95687.0,95686.0,0.09406207]
[1763349946819,0.18468,95687.0,95686.0,0.09406207]
[1763349947059,0.20952,95687.0,95686.0,0.09406207]
[1763349948004,0.20952,95687.0,95686.0,0.11633797]
[1763349948945,0.20952,95687.0,95686.0,0.12797177]
[1763349949152,0.18468,95687.0,95686.0,0.12797177]
[1763349949584,0.18468,95687.0,95686.0,0.12897177]
[1763349949736,0.18468,95687.0,95686.0,0.12997177]
[1763349950124,0.01708,95687.0,95686.0,0.12997177]
[1763349950324,0.01708,95687.0,95686.0,0.12897177]
[1763349950526,0.01708,95687.0,95686.0,0.12997177]
[1763349950839,0.01708,95687.0,95686.0,0.11733797]
[1763349951041,0.01708,95687.0,95686.0,0.11833797]
[1763349951503,0.01296,95688.0,95686.0,0.11833797]
[1763349951658,0.01296,95688.0,95687.0,0.0222759]
[1763349952739,0.05488,95688.0,95687.0,0.0222759]
[1763349953689,0.05488,95688.0,95687.0,0.0232759]
[1763349954182,0.05488,95688.0,95687.0,0.0242759]
[1763349954623,0.05488,95688.0,95687.0,0.04262423]
[1763349955057,0.05488,95688.0,95687.0,0.0242759]
[1763349955494,0.22248,95688.0,95687.0,0.0242759]
[1763349955926,0.05488,95688.0,95687.0,0.0242759]
[1763349956138,0.05488,95688.0,95687.0,0.0232759]
[1763349956399,0.05488,95688.0,95687.0,0.05111142]
[1763349956614,0.01296,95688.0,95687.0,0.07035975]
[1763349956840,0.01296,95688.0,95687.0,0.06935975]
[1763349956988,0.01296,95688.0,95687.0,0.05111142]
[1763349957187,0.03004,95688.0,95687.0,0.0242759]
[1763349957385,0.03004,95688.0,95687.0,0.05218076]
[1763349957591,0.05488,95688.0,95687.0,0.05218076]
[1763349958181,0.05488,95688.0,95687.0,0.0242759]
[1763349959194,0.01296,95688.0,95687.0,0.03984068]
[1763349959626,0.03004,95688.0,95687.0,0.0242759]
[1763349959833,0.05488,95688.0,95687.0,0.0242759]
[1763349961941,0.05488,95688.0,95687.0,0.02436505]
[1763349965552,0.22248,95688.0,95687.0,0.02436505]
[1763349966882,0.13868,95688.0,95687.0,0.02436505]
[1763349967061,0.11384,95688.0,95687.0,0.02436505]
[1763349968454,0.01296,95688.0,95687.0,0.03620776]
[1763349968698,0.01197,95693.0,95687.0,0.03620776]
[1763349969007,0.01301,95706.0,95692.0,0.02058]
[1763349969178,0.01301,95714.0,95705.0,0.10199207]
[1763349969384,0.01301,95714.0,95713.0,0.02799367]
[1763349969590,0.01301,95714.0,95713.0,0.02236505]
[1763349969753,0.01301,95725.0,95713.0,0.02236505]
[1763349970091,0.01301,95725.0,95708.0,0.00944]
[1763349970092,0.02484,95724.0,95715.0,0.03734969]
[1763349970293,0.02484,95724.0,95717.0,0.03734969]
[1763349970508,0.01301,95725.0,95718.0,0.02236505]
[1763349970509,0.0378,95719.0,95718.0,0.02236505]
[1763349971115,0.05488,95719.0,95718.0,0.02236505]
[1763349971424,0.05488,95719.0,95718.0,0.05031886]
[1763349972162,0.05488,95719.0,95718.0,0.02236505]
[1763349973354,0.05488,95719.0,95718.0,0.05029632]
[1763349974487,0.05488,95719.0,95718.0,0.02236505]
[1763349975439,0.2224,95719.0,95718.0,0.02236505]
[1763349976230,0.13864,95719.0,95718.0,0.02236505]